fUSD/lending_fUSD_20250609
["ID","MTS","AMOUNT","RATE_DAILY","PERIOD"]
[365073456,1749442243078,-237.28606546,0.00019152,2]
[365073458,1749442243087,-294.9714694,0.00019152,2]
[365073461,1749442243107,-595.49,0.00019151,2]
[365073463,1749442243115,-238.7885306,0.00019152,2]
[365073466,1749442243126,-294.54851745,0.00019152,2]
[365073468,1749442243135,-183.91194257,0.00019152,2]
[365073724,1749442408944,196.19,0.00013699,2]
[365073730,1749442578733,151.0,0.00017038,2]
[365073731,1749442619587,788.77,0.00016082,2]
[365073733,1749442655263,504.57526714,0.00015068,2]
[365073765,1749443321077,5101.46480609,0.000151,2]
[365073766,1749443321101,8000.0,0.000151,2]
[365073767,1749443321124,8000.0,0.000151,2]
[365073768,1749443321147,869.28122039,0.000151,2]
[365073770,1749443335258,500.0,0.0001178,2]
[365073771,1749443336853,500.0,0.0001315,2]
[365073772,1749443338429,500.0,0.0001452,2]
[365073787,1749443431701,-500.0,0.0001726,2]
[365073789,1749443431711,-250.0,0.00017405,2]
[365073791,1749443431721,-442.49994515,0.0001755,2]
[365073794,1749443431761,-557.50005485,0.0001755,2]
[365073795,1749443431771,-200.0,0.00017574,2]
[365073796,1749443431781,-310.58156047,0.00017604,2]
[365073797,1749443431821,-501.87238368,0.00017604,2]
[365073798,1749443431833,-387.54605585,0.00017604,2]
[365073799,1749443431843,-300.0,0.00017604,2]
[365073800,1749443431855,-2125.46793349,0.00017605,2]
[365073801,1749443431867,-855.88571947,0.00017605,2]
[365073802,1749443431987,-709.09428572,0.00017605,2]
[365073803,1749443432048,-20199.55206132,0.00017605,2]
[365073805,1749443432059,-1678.87,0.00017622,2]
[365073807,1749443432068,-150.0,0.00017657,2]
[365073809,1749443432078,-2751.0,0.00017683,2]
[365073811,1749443432087,-150.0,0.00017711,7]
[365073813,1749443432096,-392.03,0.00017804,2]
[365073815,1749443432105,-300.0,0.00017892,2]
[365073816,1749443432114,-204.09554578,0.000179,2]
[365073819,1749443432124,-250.0,0.00017928,2]
[365073820,1749443432134,-1356.52938563,0.0001799,2]
[365073823,1749443432144,-300.0,0.00017999,2]
[365073824,1749443432153,-1000.0,0.00018,2]
[365073826,1749443432162,-245.69,0.00018,2]
[365073828,1749443432172,-17470.61,0.00018,2]
[365073830,1749443432181,-204.09554578,0.00018025,2]
[365073832,1749443432191,-500.0,0.00018133,2]
[365073834,1749443432201,-204.09554578,0.0001815,2]
[365073836,1749443432210,-500.0,0.00018165,2]
[365073838,1749443432219,-544.50239547,0.00018165,2]
[365073840,1749443432229,-170.37468361,0.00018165,2]
[365073842,1749443432238,-337.03923913,0.00018165,2]
[365073844,1749443432247,-500.0,0.00018165,2]
[365073846,1749443432257,-500.0,0.00018165,2]
[365073848,1749443432265,-500.0,0.00018165,2]
[365073850,1749443432275,-499.99999999,0.00018165,2]
[365073852,1749443432284,-2172.05322139,0.00018165,2]
[365073854,1749443432293,-178.45,0.000182,2]
[365073856,1749443432303,-487.51520325,0.00018226,2]
[365073858,1749443432312,-207.4,0.00018226,2]
[365073861,1749443432321,-245.24164015,0.00018226,2]
[365073863,1749443432330,-151.0,0.00018226,2]
[365073865,1749443432340,-204.09554578,0.00018275,2]
[365073867,1749443432349,-788.77,0.00018346,2]
[365073868,1749443432358,-204.09554578,0.000184,2]
[365073870,1749443432368,-204.09554578,0.00018525,2]
[365073872,1749443432377,-204.09554578,0.0001865,2]
[365073874,1749443432386,-1005.67133228,0.00018769,2]
[365073876,1749443432395,-1114.46251854,0.00018769,2]
[365073878,1749443432405,-1147.80994413,0.00018769,2]
[365073880,1749443432414,-1040.4914021,0.00018769,2]
[365073882,1749443432423,-1005.59064395,0.00018769,2]
[365073884,1749443432433,-1140.92080229,0.00018769,2]
[365073886,1749443432442,-1081.62468383,0.00018769,2]
[365073888,1749443432452,-1009.13617801,0.00018769,2]
[365073890,1749443432462,-1131.20660645,0.00018769,2]
[365073892,1749443432471,-1015.48650237,0.00018769,2]
[365073894,1749443432481,-1062.22166994,0.00018769,2]
[365073896,1749443432490,-1139.58035289,0.00018769,2]
[365073898,1749443432499,-1126.26850047,0.00018769,2]
[365073900,1749443432508,-204.09554578,0.00018775,2]
[365073902,1749443432518,-6754.4506,0.00018854,2]
[365073904,1749443432527,-204.09554578,0.000189,2]
[365073906,1749443432536,-271.8718,0.00018937,2]
[365073908,1749443432545,-167.30291668,0.00018951,2]
[365073910,1749443432555,-2983.79222924,0.00018952,2]
[365073912,1749443432565,-652.73773946,0.00018952,2]
[365073913,1749443432574,-162.32508862,0.00018952,2]
[365073915,1749443432584,-181.04934,0.00018952,2]
[365073917,1749443432594,-2500.0,0.00018952,2]
[365073919,1749443432605,-13148.1454,0.00018954,2]
[365073921,1749443432614,-250.0,0.00018986,2]
[365073923,1749443432623,-901.78,0.00018986,2]
[365073925,1749443432633,-150.0,0.00018986,2]
[365073927,1749443432642,-361.44,0.00018986,2]
[365073929,1749443432651,-150.0,0.00018986,2]
[365073931,1749443432661,-300.0,0.00018986,2]
[365073933,1749443432670,-2321.74,0.00018986,2]
[365073934,1749443432679,-150.0,0.00018986,2]
[365073936,1749443432689,-454.78,0.00018986,2]
[365073937,1749443432699,-454.78,0.00018986,2]
[365073939,1749443432708,-453.43,0.00018986,2]
[365073941,1749443432717,-11180.25973387,0.00019,2]
[365074404,1749443437729,-315.22658213,0.00018132,2]
[365074407,1749443437739,-1989.2464131,0.00019,2]
[365074417,1749443437786,-877.02443139,0.00019,2]
[365074421,1749443437797,-995.66685064,0.00019,2]
[365074437,1749443437951,-553.88850688,0.00019,2]
[365074439,1749443437960,-250.0,0.00019,2]
[365074440,1749443437970,-151.0,0.00019,2]
[365074442,1749443437979,-279.645725,0.00019,2]
[365074444,1749443437988,-151.0,0.00019,2]
[365074446,1749443437998,-204.309451,0.00019,2]
[365074448,1749443438007,-204.309451,0.00019,2]
[365074450,1749443438017,-359.403318,0.00019,2]
[365074452,1749443438026,-359.403318,0.00019,2]
[365074454,1749443438035,-166.045941,0.00019,2]
[365074456,1749443438044,-500.0,0.00019002,2]
[365074458,1749443438053,-204.09554578,0.00019025,2]
[365074460,1749443438062,-1003.22815023,0.00019035,2]
[365074614,1749443439957,-333.67050011,0.00019035,2]
[365074856,1749443442753,-1646.89357881,0.00019035,2]
[365074859,1749443442763,-300.0,0.00019037,2]
[365074860,1749443442773,-448.42551598,0.0001905,2]
[365074862,1749443442782,-500.0,0.0001905,2]
[365074864,1749443442792,-1624.38590455,0.00019051,2]
[365074866,1749443442802,-570.67,0.00019051,2]
[365074868,1749443442811,-480.0,0.00019051,2]
[365074870,1749443442820,-480.0,0.00019051,2]
[365074872,1749443442830,-480.0,0.00019051,2]
[365074874,1749443442839,-480.0,0.00019051,2]
[365074876,1749443442848,-816.37,0.00019051,2]
[365074878,1749443442858,-480.0,0.00019051,2]
[365074880,1749443442868,-480.0,0.00019051,2]
[365074882,1749443442880,-480.0,0.00019051,2]
[365074884,1749443442890,-480.0,0.00019051,2]
[365074886,1749443442900,-480.0,0.00019051,2]
[365074888,1749443442910,-588.85456993,0.00019051,2]
[365074890,1749443442921,-480.0,0.00019051,2]
[365074892,1749443442930,-480.0,0.00019051,2]
[365074894,1749443442939,-480.0,0.00019051,2]
[365074896,1749443442949,-480.0,0.00019051,2]
[365074898,1749443442959,-480.0,0.00019051,2]
[365074900,1749443442968,-480.0,0.00019051,2]
[365074902,1749443442978,-789.98,0.00019051,2]
[365074904,1749443442988,-506.20045111,0.00019051,2]
[365074906,1749443442997,-412.67,0.00019051,2]
[365074908,1749443443006,-480.0,0.00019051,2]
[365074910,1749443443015,-3832.87,0.00019051,2]
[365074912,1749443443025,-480.0,0.00019051,2]
[365074914,1749443443034,-480.0,0.00019051,2]
[365074916,1749443443043,-2776.9,0.00019051,2]
[365074918,1749443443052,-191.76541697,0.00019051,2]
[365074920,1749443443062,-480.0,0.00019051,2]
[365074922,1749443443072,-2229.63797813,0.00019051,2]
[365075046,1749443445894,-2100.0,0.00019051,2]
[365075047,1749443445967,-3699.46105039,0.00019051,2]
[365075053,1749443448499,186.38,0.00013699,2]
[365075056,1749443569554,500.0,0.0001178,2]
[365075057,1749443571165,500.0,0.0001452,2]
[365075059,1749443636339,840.72,0.00016088,2]
[365075068,1749444150389,173.31461807,0.00012,3]
[365075072,1749444251699,208.0,0.00016961,2]
[365075075,1749444451451,3222.30416154,0.00017,2]
[365075076,1749444451474,2777.69583846,0.00017,2]
[365075099,1749444632094,-500.0,0.0001726,2]
[365075100,1749444632104,-250.0,0.00017299,2]
[365075101,1749444632113,-1083.30797103,0.00017416,2]
[365075102,1749444632123,-183.51077997,0.00017663,2]
[365075103,1749444632133,-163.67,0.00017705,2]
[365075104,1749444632143,-1000.0,0.00017728,2]
[365075105,1749444632152,-313.61,0.00017763,2]
[365075106,1749444632162,-300.0,0.00017811,2]
[365075107,1749444632171,-300.0,0.00017811,2]
[365075108,1749444632181,-1200.0,0.00017811,2]
[365075109,1749444632190,-23900.0,0.00017812,2]
[365075110,1749444632199,-2194.469163,0.00017819,2]
[365075112,1749444632209,-250.0,0.00017988,2]
[365075114,1749444632218,-200.312283,0.00018,2]
[365075115,1749444632227,-3185.89269024,0.00018,2]
[365075117,1749444632237,-164.23,0.00018074,2]
[365075119,1749444632246,-183.51077995,0.00018082,2]
[365075121,1749444632256,-151.7032,0.00018252,2]
[365075123,1749444632266,-1078.0,0.00018332,2]
[365075125,1749444632275,-840.72,0.00018352,2]
[365075127,1749444632285,-2922.27650153,0.00018492,2]
[365075129,1749444632294,-183.51077995,0.000185,2]
[365075131,1749444632304,-166.4,0.00018583,2]
[365075133,1749444632313,-151.0,0.00018589,2]
[365075135,1749444632322,-207.4,0.00018589,2]
[365075137,1749444632332,-160.6,0.000186,2]
[365075139,1749444632341,-9999.99,0.000186,2]
[365075141,1749444632350,-499.99,0.000186,2]
[365075143,1749444632360,-407.89,0.000186,2]
[365075145,1749444632369,-237.5,0.000186,2]
[365075147,1749444632378,-150.99,0.000186,2]
[365075149,1749444632388,-9999.99,0.000186,2]
[365075151,1749444632397,-9999.99,0.000186,2]
[365075153,1749444632406,-999.99,0.000186,2]
[365075155,1749444632416,-150.99,0.000186,2]
[365075157,1749444632425,-1136.58,0.000186,2]
[365075159,1749444632438,-1268.07441573,0.00018816,2]
[365075161,1749444632447,-460.94,0.00018849,2]
[365075163,1749444632456,-161.45013078,0.00018851,2]
[365075165,1749444632465,-2500.0,0.00018852,2]
[365075167,1749444632475,-1000.0,0.00018852,2]
[365075169,1749444632484,-543.9481162,0.00018853,2]
[365075171,1749444632493,-162.70515932,0.00018853,2]
[365075173,1749444632502,-173.7958163,0.00018853,2]
[365075175,1749444632512,-13518.60587182,0.0001886,2]
[365075178,1749444632521,-150.0,0.00018883,2]
[365075182,1749444632530,-150.0,0.0001889,2]
[365075185,1749444632540,-150.0,0.00018893,2]
[365075188,1749444632549,-204.09554578,0.000189,2]
[365075190,1749444632558,-150.0,0.00018901,2]
[365075192,1749444632568,-150.0,0.0001891,2]
[365075194,1749444632577,-150.0,0.00018917,2]
[365075195,1749444632586,-150.0,0.00018939,2]
[365075197,1749444632595,-150.0,0.00018949,2]
[365075199,1749444632604,-150.0,0.0001895,2]
[365075201,1749444632613,-500.0,0.0001895,2]
[365075203,1749444632623,-163.89786119,0.0001895,2]
[365075205,1749444632632,-6120.00280119,0.00018951,2]
[365075207,1749444632641,-1000.0,0.00018951,2]
[365075209,1749444632651,-500.0,0.00018951,2]
[365075211,1749444632660,-150.0,0.00018951,2]
[365075213,1749444632669,-570.3323761,0.00018951,2]
[365075215,1749444632678,-480.0,0.00018951,2]
[365075217,1749444632687,-3000.41575844,0.00018951,2]
[365075219,1749444632697,-480.0,0.00018951,2]
[365075221,1749444632706,-579.30012288,0.00018951,2]
[365075223,1749444632716,-480.0,0.00018951,2]
[365075225,1749444632725,-363.35468973,0.00018951,2]
[365075227,1749444632734,-439.45807917,0.00018951,2]
[365075229,1749444632743,-480.0,0.00018951,2]
[365075231,1749444632752,-460.0,0.00018951,2]
[365075233,1749444632762,-480.0,0.00018951,2]
[365075235,1749444632771,-480.0,0.00018951,2]
[365075237,1749444632780,-480.0,0.00018951,2]
[365075239,1749444632790,-480.0,0.00018951,2]
[365075240,1749444632799,-480.0,0.00018951,2]
[365075242,1749444632808,-250.0,0.00018951,2]
[365075244,1749444632818,-358.30744009,0.00018951,2]
[365075246,1749444632827,-480.0,0.00018951,2]
[365075249,1749444632836,-480.0,0.00018951,2]
[365075250,1749444632846,-480.0,0.00018951,2]
[365075252,1749444632855,-480.0,0.00018951,2]
[365075254,1749444632864,-480.0,0.00018951,2]
[365075256,1749444632874,-480.0,0.00018951,2]
[365075258,1749444632884,-480.0,0.00018951,2]
[365075260,1749444632893,-480.0,0.00018951,2]
[365075262,1749444632902,-195.6667198,0.00018951,2]
[365075264,1749444632912,-460.0,0.00018951,2]
[365075266,1749444632921,-579.66923382,0.00018951,2]
[365075268,1749444632930,-480.0,0.00018951,2]
[365075270,1749444632939,-156.823953,0.00018951,2]
[365075272,1749444632948,-480.0,0.00018951,2]
[365075274,1749444632957,-480.0,0.00018951,2]
[365075276,1749444632967,-480.0,0.00018951,2]
[365075278,1749444632976,-460.0,0.00018951,2]
[365075280,1749444632985,-480.0,0.00018951,2]
[365075282,1749444632994,-460.0,0.00018951,2]
[365075284,1749444633003,-460.0,0.00018951,2]
[365075286,1749444633013,-460.0,0.00018951,2]
[365075288,1749444633022,-480.0,0.00018951,2]
[365075290,1749444633032,-336.69818285,0.00018951,2]
[365075292,1749444633041,-480.0,0.00018951,2]
[365075294,1749444633050,-406.37892559,0.00018951,2]
[365075295,1749444633060,-460.0,0.00018951,2]
[365075298,1749444633070,-480.0,0.00018951,2]
[365075299,1749444633079,-480.0,0.00018951,2]
[365075301,1749444633089,-480.0,0.00018951,2]
[365075303,1749444633099,-480.0,0.00018951,2]
[365075305,1749444633108,-293.01353159,0.00018951,2]
[365075307,1749444633117,-460.0,0.00018951,2]
[365075309,1749444633127,-460.0,0.00018951,2]
[365075311,1749444633139,-480.0,0.00018951,2]
[365075313,1749444633149,-195.59940581,0.00018951,2]
[365075315,1749444633158,-202.02655611,0.00018951,2]
[365075317,1749444633168,-380.0,0.00018951,2]
[365075319,1749444633177,-275.75928723,0.00018951,2]
[365075321,1749444633187,-404.13490565,0.00018951,2]
[365075323,1749444633196,-460.0,0.00018951,2]
[365075325,1749444633205,-387.38204389,0.00018951,2]
[365075327,1749444633215,-460.0,0.00018951,2]
[365075329,1749444633224,-460.0,0.00018951,2]
[365075331,1749444633233,-460.0,0.00018951,2]
[365075333,1749444633243,-320.75,0.00018951,2]
[365075335,1749444633252,-480.0,0.00018951,2]
[365075337,1749444633261,-480.0,0.00018951,2]
[365075339,1749444633271,-480.0,0.00018951,2]
[365075340,1749444633280,-500.0,0.00018951,2]
[365075342,1749444633289,-460.0,0.00018951,2]
[365075344,1749444633299,-460.0,0.00018951,2]
[365075346,1749444633308,-480.0,0.00018951,2]
[365075365,1749444633506,-378.87184351,0.00018951,2]
[365075367,1749444633517,-485.63422584,0.00018951,2]
[365075369,1749444633527,-546.9,0.00018951,2]
[365075371,1749444633537,-480.0,0.00018951,2]
[365075373,1749444633547,-460.0,0.00018951,2]
[365075375,1749444633556,-190.84534014,0.00018951,2]
[365075377,1749444633565,-480.0,0.00018951,2]
[365075379,1749444633574,-480.0,0.00018951,2]
[365075381,1749444633583,-340.0,0.00018951,2]
[365075382,1749444633593,-460.0,0.00018951,2]
[365075385,1749444633603,-234.90204377,0.00018951,2]
[365075386,1749444633612,-460.0,0.00018951,2]
[365075389,1749444633622,-480.0,0.00018951,2]
[365075390,1749444633631,-359.75766395,0.00018951,2]
[365075391,1749444633641,-480.0,0.00018951,2]
[365075392,1749444633651,-480.0,0.00018951,2]
[365075393,1749444633661,-480.0,0.00018951,2]
[365075394,1749444633671,-352.37575725,0.00018951,2]
[365075395,1749444633686,-512.07005643,0.00018951,2]
[365075396,1749444633696,-358.34763528,0.00018951,2]
[365075397,1749444633705,-480.0,0.00018951,2]
[365075398,1749444633715,-177.70624162,0.00018951,2]
[365075399,1749444633725,-480.0,0.00018951,2]
[365075400,1749444633735,-460.0,0.00018951,2]
[365075401,1749444633745,-460.0,0.00018951,2]
[365075402,1749444633754,-460.0,0.00018951,2]
[365075403,1749444633764,-460.0,0.00018951,2]
[365075404,1749444633775,-460.0,0.00018951,2]
[365075405,1749444633784,-460.0,0.00018951,2]
[365075407,1749444633794,-151.0,0.00018951,2]
[365075409,1749444633803,-480.0,0.00018951,2]
[365075410,1749444633812,-458.51,0.00018951,2]
[365075412,1749444633822,-460.0,0.00018951,2]
[365075414,1749444633832,-480.0,0.00018951,2]
[365075417,1749444633842,-460.0,0.00018951,2]
[365075418,1749444633851,-480.0,0.00018951,2]
[365075420,1749444633860,-480.0,0.00018951,2]
[365075422,1749444633870,-551.58,0.00018951,2]
[365075424,1749444633880,-460.0,0.00018951,2]
[365075426,1749444633889,-480.0,0.00018951,2]
[365075428,1749444633899,-480.0,0.00018951,2]
[365075430,1749444633908,-480.0,0.00018951,2]
[365075432,1749444633918,-460.0,0.00018951,2]
[365075434,1749444633927,-460.0,0.00018951,2]
[365075436,1749444633937,-460.0,0.00018951,2]
[365075438,1749444633946,-460.0,0.00018951,2]
[365075440,1749444633955,-460.0,0.00018951,2]
[365075441,1749444633964,-240.09280505,0.00018951,2]
[365075443,1749444633974,-810.24,0.00018951,2]
[365075445,1749444633984,-460.0,0.00018951,2]
[365075447,1749444633995,-460.0,0.00018951,2]
[365075449,1749444634005,-480.0,0.00018951,2]
[365075451,1749444634015,-500.0,0.00018951,2]
[365075453,1749444634024,-559.91,0.00018951,2]
[365075455,1749444634033,-460.0,0.00018951,2]
[365075457,1749444634043,-480.0,0.00018951,2]
[365075459,1749444634052,-440.0,0.00018951,2]
[365075461,1749444634061,-460.0,0.00018951,2]
[365075463,1749444634071,-480.0,0.00018951,2]
[365075465,1749444634080,-460.0,0.00018951,2]
[365075467,1749444634089,-7506.04,0.00018951,2]
[365075469,1749444634098,-480.0,0.00018951,2]
[365075471,1749444634107,-323.44,0.00018951,2]
[365075473,1749444634116,-396.35670409,0.00018951,2]
[365075475,1749444634126,-460.0,0.00018951,2]
[365075477,1749444634135,-440.0,0.00018951,2]
[365075479,1749444634144,-460.0,0.00018951,2]
[365075481,1749444634154,-440.0,0.00018951,2]
[365075483,1749444634162,-440.0,0.00018951,2]
[365075484,1749444634174,-440.0,0.00018951,2]
[365075486,1749444634183,-323.462987,0.00018951,2]
[365075488,1749444634192,-443.71373959,0.00018951,2]
[365075490,1749444634201,-323.462987,0.00018951,2]
[365075492,1749444634210,-460.0,0.00018951,2]
[365075494,1749444634219,-460.0,0.00018951,2]
[365075496,1749444634228,-480.0,0.00018951,2]
[365075498,1749444634238,-329.96,0.00018951,2]
[365075500,1749444634247,-10225.0,0.00018951,2]
[365075502,1749444634256,-480.0,0.00018951,2]
[365075504,1749444634266,-460.0,0.00018951,2]
[365075506,1749444634275,-550.51,0.00018951,2]
[365075508,1749444634285,-420.0,0.00018951,2]
[365075510,1749444634294,-460.0,0.00018951,2]
[365075512,1749444634303,-460.0,0.00018951,2]
[365075514,1749444634312,-480.0,0.00018951,2]
[365075516,1749444634321,-460.0,0.00018951,2]
[365075518,1749444634330,-500.0,0.00018951,2]
[365075519,1749444634339,-480.0,0.00018951,2]
[365075521,1749444634349,-531.09620374,0.00018951,2]
[365075523,1749444634358,-183.878506,0.00018951,2]
[365075525,1749444634367,-525.95678841,0.00018951,2]
[365075527,1749444634377,-460.0,0.00018951,2]
[365075529,1749444634386,-686.19,0.00018951,2]
[365075531,1749444634395,-480.0,0.00018951,2]
[365075533,1749444634405,-596.66,0.00018951,2]
[365075535,1749444634414,-151.0,0.00018952,2]
[365075537,1749444634423,-267.732229,0.00018952,2]
[365075539,1749444634432,-323.462987,0.00018952,2]
[365075541,1749444634443,-323.462987,0.00018952,2]
[365075543,1749444634454,-183.878506,0.00018952,2]
[365075545,1749444634463,-187713.3881,0.00018952,2]
[365075547,1749444634472,-13518.60587176,0.00018953,2]
[365075549,1749444634481,-150.0,0.00018957,2]
[365075550,1749444634490,-207.0,0.0001896,2]
[365075552,1749444634499,-500.0,0.00018973,2]
[365075554,1749444634510,-500.0,0.00018978,2]
[365075556,1749444634520,-150.0,0.00018979,2]
[365075558,1749444634529,-150.0,0.00018982,2]
[365075560,1749444634540,-250.0,0.00018986,2]
[365075563,1749444634550,-250.0,0.00018986,2]
[365075564,1749444634560,-170.66,0.00018986,2]
[365075566,1749444634569,-300.0,0.00018986,2]
[365075568,1749444634578,-354.46,0.00018986,2]
[365075570,1749444634588,-170.66,0.00018986,2]
[365075572,1749444634598,-354.46,0.00018986,2]
[365075574,1749444634608,-354.46,0.00018986,2]
[365075576,1749444634617,-170.66,0.00018986,2]
[365075578,1749444634626,-150.0,0.0001899,2]
[365075580,1749444634636,-500.0,0.00019,2]
[365075582,1749444634645,-250.0,0.00019,2]
[365075584,1749444634654,-162.70515931,0.00019002,2]
[365075586,1749444634663,-500.0,0.00019006,2]
[365075588,1749444634672,-150.0,0.00019014,2]
[365075590,1749444634681,-150.0,0.00019022,2]
[365075592,1749444634691,-151.72650908,0.00019031,2]
[365075594,1749444634700,-528.39193276,0.00019033,2]
[365075596,1749444634709,-3000.41575837,0.00019034,2]
[365075598,1749444634719,-13518.60587176,0.00019047,2]
[365075600,1749444634728,-205.152615,0.00019047,2]
[365075601,1749444634737,-323.462987,0.00019047,2]
[365075603,1749444634746,-323.462987,0.00019047,2]
[365075605,1749444634755,-183.878506,0.00019047,2]
[365075607,1749444634764,-480.0,0.0001905,2]
[365075609,1749444634774,-480.0,0.0001905,2]
[365075611,1749444634783,-500.0,0.0001905,2]
[365075613,1749444634792,-480.0,0.0001905,2]
[365075615,1749444634801,-782.35,0.0001905,2]
[365075617,1749444634811,-480.0,0.0001905,2]
[365075619,1749444634820,-480.0,0.0001905,2]
[365075621,1749444634829,-480.0,0.0001905,2]
[365075623,1749444634839,-480.0,0.0001905,2]
[365075625,1749444634848,-465.5248952,0.0001905,2]
[365075627,1749444634857,-480.0,0.0001905,2]
[365075629,1749444634867,-480.0,0.0001905,2]
[365075631,1749444634876,-500.0,0.0001905,2]
[365075632,1749444634885,-480.0,0.0001905,2]
[365075634,1749444634895,-460.0,0.0001905,2]
[365075636,1749444634904,-460.0,0.0001905,2]
[365075638,1749444634914,-480.0,0.0001905,2]
[365075640,1749444634923,-2699.53,0.0001905,2]
[365075642,1749444634932,-614.31,0.0001905,2]
[365075644,1749444634941,-460.0,0.0001905,2]
[365075646,1749444634950,-480.0,0.0001905,2]
[365075648,1749444634959,-469.75915531,0.0001905,2]
[365075650,1749444634969,-480.0,0.0001905,2]
[365075652,1749444634978,-480.0,0.0001905,2]
[365075654,1749444634987,-330.63345276,0.0001905,2]
[365075656,1749444634996,-480.0,0.0001905,2]
[365075658,1749444635005,-469.3951335,0.0001905,2]
[365075660,1749444635014,-860.15,0.0001905,2]
[365075662,1749444635024,-307.09028274,0.0001905,2]
[365075663,1749444635033,-237.5,0.00019051,2]
[365075665,1749444635042,-329.27039455,0.00019051,2]
[365075667,1749444635051,-498.63003281,0.00019051,2]
[365075669,1749444635060,-480.0,0.00019051,2]
[365075671,1749444635069,-480.0,0.00019051,2]
[365075673,1749444635078,-210.8980772,0.00019051,2]
[365075675,1749444635087,-470.28814533,0.00019051,2]
[365075677,1749444635096,-472.72646227,0.00019051,2]
[365075679,1749444635105,-480.0,0.00019051,2]
[365075681,1749444635114,-456.88704006,0.00019051,2]
[365075683,1749444635123,-480.0,0.00019051,2]
[365075685,1749444635132,-480.0,0.00019051,2]
[365075687,1749444635142,-468.82186959,0.00019051,2]
[365075689,1749444635152,-476.79277908,0.00019051,2]
[365075691,1749444635161,-479.25826921,0.00019051,2]
[365075693,1749444635170,-466.00523212,0.00019051,2]
[365075695,1749444635180,-480.0,0.00019051,2]
[365075696,1749444635189,-589.8906765,0.00019051,2]
[365075698,1749444635198,-474.97173445,0.00019051,2]
[365075700,1749444635207,-480.0,0.00019051,2]
[365075702,1749444635216,-152.772411,0.00019051,2]
[365075704,1749444635225,-480.0,0.00019051,2]
[365075706,1749444635234,-480.0,0.00019051,2]
[365075708,1749444635243,-480.0,0.00019051,2]
[365075710,1749444635252,-480.0,0.00019051,2]
[365075712,1749444635261,-480.0,0.00019051,2]
[365075714,1749444635271,-572.60240662,0.00019051,2]
[365075716,1749444635280,-472.19174314,0.00019051,2]
[365075718,1749444635289,-480.0,0.00019051,2]
[365075719,1749444635298,-328.97108038,0.00019051,2]
[365075721,1749444635307,-485.48159516,0.00019051,2]
[365075723,1749444635317,-479.33882775,0.00019051,2]
[365075725,1749444635326,-482.74076522,0.00019051,2]
[365075727,1749444635335,-460.0,0.00019051,2]
[365075729,1749444635344,-460.0,0.00019051,2]
[365075731,1749444635353,-460.0,0.00019051,2]
[365075733,1749444635363,-480.0,0.00019051,2]
[365075735,1749444635372,-460.0,0.00019051,2]
[365075737,1749444635381,-464.32734743,0.00019051,2]
[365075739,1749444635391,-475.73524582,0.00019051,2]
[365075741,1749444635400,-460.0,0.00019051,2]
[365075743,1749444635409,-466.59510965,0.00019051,2]
[365075745,1749444635418,-460.0,0.00019051,2]
[365075747,1749444635427,-460.0,0.00019051,2]
[365075749,1749444635436,-460.0,0.00019051,2]
[365075750,1749444635445,-475.69493298,0.00019051,2]